{"text_format":"1","workbook":"xlsx","n_sheets":4,"sheets":["Impact and Productivity","Other Accomp.","Leadership","Sustainability"],"not_rendered":{"charts":0,"images":1,"macros":1,"external_links":0,"defined_names":0,"comments":3,"pivot_tables":0},"unopened":[],"bounds":{"document_bytes":16777216,"sheet_cells":100000,"rows_first":2000,"rows_last":500,"rows_between":2000,"halvings":0,"cell_chars":16384,"cell_head_chars":4096},"cells_cut":0,"cells_raw":0,"read":"whole","date_system":"1900"}

{"sheet":"Impact and Productivity","index":0,"n_rows":50,"n_cols":12,"rows_kept":50,"cut":false,"hidden":false,"merged":[[3,1,3,4],[4,1,4,4],[7,0,7,1]]}
[]
["Early Career Research Award - Application Form - 2026",null,null,null,null,null,null,null,null,null,null,"Points"]
[null,null,null,null,null,null,null,"A. Research Impact and Productivity ",null,null,null,{"$f":"F24+F39+F47+F50","v":55.333333333333336}]
["Name:",null,null,null,null,null,null,"B. Other Research Accomplishments ",null,null,null,{"$f":"'Other Accomp.'!F17+'Other Accomp.'!F32+'Other Accomp.'!F47+'Other Accomp.'!F62","v":25.666666666666668}]
["Department:",null,null,null,null,null,null,"C. Research Leadership ",null,null,null,{"$f":"MIN(Leadership!F17+Leadership!F32+Leadership!F40+Leadership!F52,0.5*(L4+F24))","v":16.625}]
[null,null,null,null,null,null,null,"D. International & Sustainability ",null,null,null,{"$f":"(0.5*Sustainability!C8)+(0.05*Sustainability!C6)","v":12.25}]
[null,null,null,null,null,null,null,null,null,null,"Total",{"$f":"SUM(L3:L6)","v":109.875}]
["Note: To add any row, just double click on any cell within the row"]
[]
["A. Research Impact and Productivity"]
["Publications in ISI/Scopus-indexed journals (only Q1 and Q2)"]
["JN","Paper Title with Journal Name","Quartile (Q)","No. Au","1st/Corr","Points"]
[1,"XXX",1,3,"Y",{"$f":"IF(D13=1,IFERROR((IF(C13=1,10,8))/D13,0),IFERROR((IF(C13=1,10,8))/D13,0)+IF(E13=\"Y\",0.25,0))","v":3.5833333333333335},"SAMPLE"]
[2,"XXX",2,2,"N",{"$f":"IF(D14=1,IFERROR((IF(C14=1,10,8))/D14,0),IFERROR((IF(C14=1,10,8))/D14,0)+IF(E14=\"Y\",0.25,0))","v":4},"SAMPLE"]
[3,null,null,null,null,0]
[4,null,null,null,null,0]
[5,null,null,null,null,0]
[6,null,null,null,null,0]
[7,null,null,null,null,0]
[8,null,null,null,null,0]
[9,null,null,null,null,0]
[10,null,null,null,null,0]
[null,null,null,null,null,0]
[null,null,null,null,"Total",{"$f":"SUM(F13:F23)","v":7.5833333333333339}]
[]
["Publications in flagship conferences (only A* and A)"]
["CN","Paper Title with Conference Name",null,"No. Au","1st","Points"]
[1,"XXX",null,3,"Y",{"$f":"IF(D28=1,IFERROR(3/D28,0),IFERROR(3/D28,0)+IF(E28=\"Y\",0.25,0))","v":1.25},"SAMPLE"]
[2,"XXX",null,2,"N",{"$f":"IF(D29=1,IFERROR(3/D29,0),IFERROR(3/D29,0)+IF(E29=\"Y\",0.25,0))","v":1.5},"SAMPLE"]
[3,null,null,null,null,0]
[4,null,null,null,null,0]
[5,null,null,null,null,0]
[6,null,null,null,null,0]
[7,null,null,null,null,0]
[8,null,null,null,null,0]
[9,null,null,null,null,0]
[10,null,null,null,null,0]
[null,null,null,null,null,0]
[null,null,null,null,"Total",{"$f":"SUM(F28:F38)","v":2.75}]
[]
["Citations ","[Scopus: All work over the last 8 years but only counting citations in the last 4 years]"]
["Year","Citations (excluding self-citation) ",null,null,null,"Points"]
["20xx",160,null,null,null,{"$f":"B43*0.5","v":80}]
["20xx",140,null,null,null,{"$f":"B44*0.5","v":70}]
["20xx",120,null,null,null,60]
["20xx",100,null,null,null,50]
[null,null,null,null,"Total",{"$f":"MIN(SUM(F43:F46),30)","v":30}]
[]
["h5-index",null,null,null,"Value","Points"]
["Number of articles cited at least h times over the last 5 years (from Scopus)",null,null,null,15,{"$f":"E50","v":15}]

{"sheet":"Other Accomp.","index":1,"n_rows":62,"n_cols":7,"rows_kept":62,"cut":false,"hidden":false,"merged":[]}
["Early Career Research Award - Application Form"]
[]
["B. Other Research Accomplishments "]
["Research-Oriented Books or Volumes",null,"A: Authored, E: Edited, C: Book chapter"]
["BN","Book or Chapter Title with publisher","Auth, Ed, Ch.","No. Au","1st","Points"]
[1,"XXX","A",3,"Y",{"$f":"IF(D6=1,IFERROR(IF(C6=\"A\",15,IF(C6=\"E\",10,5))/D6,0),IFERROR(IF(C6=\"A\",15,IF(C6=\"E\",10,5))/D6,0)+IF(AND(C6=\"A\",E6=\"Y\"),1,0))","v":6},"SAMPLE"]
[2,"XXX","E",2,null,{"$f":"IF(D7=1,IFERROR(IF(C7=\"A\",15,IF(C7=\"E\",10,5))/D7,0),IFERROR(IF(C7=\"A\",15,IF(C7=\"E\",10,5))/D7,0)+IF(AND(C7=\"A\",E7=\"Y\"),1,0))","v":5},"SAMPLE"]
[3,"XXX","C",1,null,5,"SAMPLE"]
[4,null,null,null,null,0]
[5,null,null,null,null,0]
[6,null,null,null,null,0]
[7,null,null,null,null,0]
[8,null,null,null,null,0]
[9,null,null,null,null,0]
[10,null,null,null,null,0]
[null,null,null,null,null,0]
[null,null,null,null,"Total",{"$f":"SUM(F6:F16)","v":16}]
[]
["Other Publications in ISI/Scopus-indexed journals (NOT Q1/Q2)"]
["JN","Paper Title with Journal Name",null,"No. Au","1st/Corr","Points"]
[1,"XXX",null,3,"Y",{"$f":"IF(D21=1,IFERROR(5/D21,0),IFERROR(5/D21,0)+IF(E21=\"Y\",0.25,0))","v":1.9166666666666667},"SAMPLE"]
[2,"XXX",null,2,"N",{"$f":"IF(D22=1,IFERROR(5/D22,0),IFERROR(5/D22,0)+IF(E22=\"Y\",0.25,0))","v":2.5},"SAMPLE"]
[3,null,null,null,null,0]
[4,null,null,null,null,0]
[5,null,null,null,null,0]
[6,null,null,null,null,0]
[7,null,null,null,null,0]
[8,null,null,null,null,0]
[9,null,null,null,null,0]
[10,null,null,null,null,0]
[null,null,null,null,null,0]
[null,null,null,null,"Total",{"$f":"SUM(F21:F31)","v":4.416666666666667}]
[]
["Other Publications in conferences (NOT Flagship)"]
["CN","Paper Title with Conference Name",null,"No. Au","1st","Points"]
[1,"XXX",null,3,"Y",{"$f":"IF(D36=1,IFERROR(1/D36,0),IFERROR(1/D36,0)+IF(E36=\"Y\",0.25,0))","v":0.58333333333333326},"SAMPLE"]
[2,"XXX",null,2,"N",{"$f":"IF(D37=1,IFERROR(1/D37,0),IFERROR(1/D37,0)+IF(E37=\"Y\",0.25,0))","v":0.5},"SAMPLE"]
[3,null,null,null,null,0]
[4,null,null,null,null,0]
[5,null,null,null,null,0]
[6,null,null,null,null,0]
[7,null,null,null,null,0]
[8,null,null,null,null,0]
[9,null,null,null,null,0]
[10,null,null,null,null,0]
[null,null,null,null,null,0]
[null,null,null,null,"Total",{"$f":"SUM(F36:F46)","v":1.0833333333333333}]
[]
["Patents"]
["PN","Patent Title and Number",null,null,"No. Inv","Points"]
[1,"XXX",null,null,3,{"$f":"IFERROR(5/E51,0)","v":1.6666666666666667},"SAMPLE"]
[2,"XXX",null,null,2,{"$f":"IFERROR(5/E52,0)","v":2.5},"SAMPLE"]
[3,null,null,null,null,0]
[4,null,null,null,null,0]
[5,null,null,null,null,0]
[6,null,null,null,null,0]
[7,null,null,null,null,0]
[8,null,null,null,null,0]
[9,null,null,null,null,0]
[10,null,null,null,null,0]
[null,null,null,null,null,0]
[null,null,null,null,"Total",{"$f":"SUM(F51:F61)","v":4.166666666666667}]

{"sheet":"Leadership","index":2,"n_rows":52,"n_cols":7,"rows_kept":52,"cut":false,"hidden":false,"merged":[[50,1,50,4]]}
["Early Career Research Award - Application Form"]
[]
["C. Research Leadership "]
["External Funded Research Projects (ongoing/completed)",null,null,null,"P: Principle Investigator C: Co-Investigator"]
["SN","Project Title",null,null,"Role","Points"]
[1,"XXX",null,null,"P",{"$f":"IF(E6=\"P\",6,IF(E6=\"C\",5,0))","v":6},"SAMPLE"]
[2,"XXX",null,null,"C",{"$f":"IF(E7=\"P\",6,IF(E7=\"C\",5,0))","v":5},"SAMPLE"]
[3,null,null,null,null,{"$f":"IF(E8=\"P\",6,IF(E8=\"C\",5,0))","v":0}]
[4,null,null,null,null,0]
[5,null,null,null,null,0]
[6,null,null,null,null,0]
[7,null,null,null,null,0]
[8,null,null,null,null,0]
[9,null,null,null,null,0]
[10,null,null,null,null,0]
[null,null,null,null,null,0]
[null,null,null,null,"Total",{"$f":"SUM(F6:F16)","v":11}]
[]
["Internal Funded Research Projects (ongoing/completed)",null,null,null,"P: Principle Investigator C: Co-Investigator"]
["SN","Project Title",null,null,"Role","Points"]
[1,"XXX",null,null,"P",{"$f":"IF(E21=\"P\",4,IF(E21=\"C\",3,0))","v":4},"SAMPLE"]
[2,"XXX",null,null,"C",{"$f":"IF(E22=\"P\",4,IF(E22=\"C\",3,0))","v":3},"SAMPLE"]
[3,null,null,null,null,{"$f":"IF(E23=\"P\",4,IF(E23=\"C\",3,0))","v":0}]
[4,null,null,null,null,0]
[5,null,null,null,null,0]
[6,null,null,null,null,0]
[7,null,null,null,null,0]
[8,null,null,null,null,0]
[9,null,null,null,null,0]
[10,null,null,null,null,0]
[null,null,null,null,null,0]
[null,null,null,null,"Total",{"$f":"SUM(F21:F31)","v":7}]
[]
["MS Thesis and PhD Dissertations (ongoing/completed)",null,null,null,"P: PhD , M: MS Thesis , C: Committee Member"]
["SN","Thesis Title ",null,null,"PhD/MS","Points"]
[1,"XXX",null,null,"P",{"$f":"IF(E36=\"P\",4,IF(E36=\"M\",2,IF(E36=\"C\",1,0)))","v":4},"SAMPLE"]
[2,"XXX",null,null,"M",{"$f":"IF(E37=\"P\",4,IF(E37=\"M\",2,IF(E37=\"C\",1,0)))","v":2},"SAMPLE"]
[3,"XXX",null,null,"C",1,"SAMPLE"]
[null,null,null,null,null,0]
[null,null,null,null,"Total",{"$f":"SUM(F36:F39)","v":7}]
[]
["Overall Leadership and Recognition in Research "]
[null,"Applicant will write a concise statement of approximately 100-200 words describing his/her major research achievements, their significance, and impact on knowledge in his field of research.  Below are examples that might be considered by the ad hoc committee:"]
[null,"·       Membership in editorial boards "]
[null,"·       Organizing conferences/symposia"]
[null,"·       Being invited to deliver keynote speeches "]
[null,"·       Participation in International Conferences Scientific Committees"]
[null,"·       Development of Research Center and research laboratories at KFUPM"]
[null,"·       Serving on review boards, etc."]
[null,"·       Consultancy to National and International Scientific Institutions."]
[null,"Enter your statement here.."]
[null,"To be filled by the ad-hoc committee based on the statement",null,null,"Points",null,"Maximum 10 points"]

{"sheet":"Sustainability","index":3,"n_rows":9,"n_cols":4,"rows_kept":9,"cut":false,"hidden":false,"merged":[]}
["Early Career Research Award - Application Form"]
[]
["D. International & Sustainability "]
["To be updated by the internal Office"]
["1. International Collaboration",null,"Percentage (%)"]
[null,"Joint publications with international scholars",45,"SAMPLE"]
["2. Contribution to UN SDGs",null,"Percentage (%)"]
[null,"Research outputs contributing to the SDGs",20,"SAMPLE"]
[null,"Source for International & Sustainability is Pure (Elsevier) and will not be requested from applicant.Points for the Percentage of joint publications with international co-authors will be 0.05 multiplied its percentage while the points for the research outputs contributing to the UN SDGs will be 0.5 multiplied by the percentage of these works.  "]